[Event "51st La Roda Open 2025"]
[Site "La Roda"]
[Date "2025.04.20"]
[Round "9.8"]
[White "Machado Hernandez, Junior"]
[Black "Centron Antuna, Daniel"]
[Result "0-1"]
[Annotator "ChessBase"]
[ECO "C02"]
[WhiteElo "2051"]
[BlackElo "2299"]
[PlyCount "57"]
[EventDate "2025.04.15"]
[EventType "swiss"]
[EventCountry "ESP"]
[SourceTitle "playchess.com"]
[Source "ChessBase"]
[SourceQuality "1"]
[TimeControl "5400+30"]

1. e4 {[%emt 0:00:06]} e6 {[%emt 0:06:32]} 2. d4 {[%emt 0:01:03]} d5 {[%emt 0:00:04]} 3. e5 {[%emt 0:00:24]} c5 {[%emt 0:00:06]} 4. c3 {[%emt 0:00:16]} Nc6 {[%emt 0:00:07]} 5. Nf3 {[%emt 0:00:44]} Bd7 {[%emt 0:00:08]} 6. dxc5 {[%emt 0:05:11]} Bxc5 {[%emt 0:00:35]} 7. Bd3 {[%emt 0:00:22]} Nge7 {[%emt 0:03:06]} 8. O-O {[%emt 0:04:56]} Ng6 {[%emt 0:01:54]} 9. Qe2 {[%emt 0:00:41]} Qc7 {[%emt 0:00:41]} 10. Re1 {[%emt 0:00:17]} f6 {[%emt 0:03:23]} 11. b4 {[%emt 0:01:58]} Bb6 {[%emt 0:00:42]} 12. exf6 {[%emt 0:07:49]} gxf6 {[%emt 0:00:14]} 13. a4 {[%emt 0:05:36]} Nf4 {[%emt 0:06:59]} 14. Bxf4 {[%emt 0:00:19]} Qxf4 {[%emt 0:00:02]} 15. b5 {[%emt 0:05:16]} Ne5 {[%emt 0:06:57]} 16. Nxe5 {[%emt 0:01:57]} fxe5 {[%emt 0:00:15]} 17. a5 {[%emt 0:00:28]} Bc5 {[%emt 0:00:16]} 18. Ra2 {[%emt 0:06:26]} e4 {[%emt 0:01:52]} 19. Bxe4 {[%emt 0:04:48]} Qxe4 {[%emt 0:02:32]} 20. Qh5+ {[%emt 0:00:21]} Qg6 {[%emt 0:00:03]} 21. Qxd5 {[%emt 0:00:24]} Rc8 {[%emt 0:14:31]} 22. Qxb7 {[%emt 0:12:31]} Qf7 {[%emt 0:03:15]} 23. Rd1 {[%emt 0:08:25]} Rd8 {[%emt 0:03:56]} 24. Qc7 {[%emt 0:02:43]} Qh5 {[%emt 0:01:13]} 25. Rad2 {[%emt 0:00:30]} O-O {[%emt 0:01:01]} 26. h3 {[%emt 0:06:14]} Bxf2+ {[%emt 0:01:24]} 27. Kh1 {[%emt 0:00:06]} e5 {[%emt 0:13:48]} 28. b6 {[%emt 0:08:48]} Bxh3 {[%emt 0:01:29]} 29. Kh2 {[%emt 0:16:21]} 0-1

[Event "51st La Roda Open 2025"]
[Site "La Roda"]
[Date "2025.04.20"]
[Round "9.9"]
[White "Gomez Falagan, Daniel"]
[Black "Portero Rubio, Martin"]
[Result "1-0"]
[Annotator "ChessBase"]
[ECO "E53"]
[WhiteElo "2254"]
[BlackElo "2125"]
[PlyCount "95"]
[EventDate "2025.04.15"]
[EventType "swiss"]
[EventCountry "ESP"]
[SourceTitle "playchess.com"]
[Source "ChessBase"]
[SourceQuality "1"]
[TimeControl "5400+30"]

1. d4 {[%emt 0:00:04]} Nf6 {[%emt 0:00:24]} 2. c4 {[%emt 0:00:05]} e6 {[%emt 0:00:08]} 3. Nc3 {[%emt 0:00:04]} Bb4 {[%emt 0:00:24]} 4. e3 {[%emt 0:00:07]} O-O {[%emt 0:00:36]} 5. Bd3 {[%emt 0:00:05]} d5 {[%emt 0:00:33]} 6. a3 {[%emt 0:00:07]} Bxc3+ {[%emt 0:00:15]} 7. bxc3 {[%emt 0:00:05]} dxc4 {[%emt 0:00:33]} 8. Bxc4 {[%emt 0:00:07]} c5 {[%emt 0:00:25]} 9. Nf3 {[%emt 0:00:06]} Qc7 {[%emt 0:00:35]} 10. Be2 {[%emt 0:00:11]} b6 {[%emt 0:00:19]} 11. Bb2 {[%emt 0:00:09]} cxd4 {[%emt 0:00:41]} 12. cxd4 {[%emt 0:00:10]} Ba6 {[%emt 0:01:05]} 13. O-O {[%emt 0:00:06]} Bxe2 {[%emt 0:02:04]} 14. Qxe2 {[%emt 0:00:05]} Nbd7 {[%emt 0:00:37]} 15. e4 {[%emt 0:00:20]} Rfc8 {[%emt 0:01:14]} 16. Rfc1 {[%emt 0:00:18]} Qb7 {[%emt 0:00:27]} 17. Re1 {[%emt 0:00:08]} b5 {[%emt 0:00:21]} 18. Rab1 {[%emt 0:02:42]} a6 {[%emt 0:13:00]} 19. h3 {[%emt 0:04:51]} h6 {[%emt 0:00:43]} 20. Nd2 {[%emt 0:06:35]} Rab8 {[%emt 0:12:44]} 21. Nf1 {[%emt 0:05:47]} a5 {[%emt 0:04:01]} 22. Ba1 {[%emt 0:07:55]} b4 {[%emt 0:03:02]} 23. axb4 {[%emt 0:00:11]} axb4 {[%emt 0:00:13]} 24. Qf3 {[%emt 0:01:40]} Qa8 {[%emt 0:08:42]} 25. Ng3 {[%emt 0:21:58]} Rc2 {[%emt 0:06:00]} 26. d5 {[%emt 0:08:39]} Qa2 {[%emt 0:17:18]} 27. Qf4 {[%emt 0:12:19]} Rb7 {[%emt 0:07:43]} 28. dxe6 {[%emt 0:10:40]} fxe6 {[%emt 0:00:40]} 29. Rbd1 {[%emt 0:02:18]} b3 {[%emt 0:03:01]} 30. Bxf6 {[%emt 0:00:42]} Nxf6 {[%emt 0:00:43]} 31. Rd8+ {[%emt 0:00:13]} Kh7 {[%emt 0:01:29]} 32. e5 {[%emt 0:00:06]} b2 {[%emt 0:04:52]} 33. exf6 {[%emt 0:00:07]} b1=Q {[%emt 0:00:48]} 34. Qe4+ {[%emt 0:01:52]} g6 {[%emt 0:00:00]} 35. Rxb1 {[%emt 0:00:23]} Qxb1+ {[%emt 0:01:54]} 36. Kh2 {[%emt 0:00:10]} Qb3 {[%emt 0:06:31]} 37. Re8 {[%emt 0:07:24]} Rcc7 {[%emt 0:03:08]} 38. Rxe6 {[%emt 0:00:34]} Rf7 {[%emt 0:00:47]} 39. Re7 {[%emt 0:00:47]} Qb5 {[%emt 0:00:59]} 40. h4 {[%emt 0:02:01]} Rbxe7 {[%emt 0:00:26]} 41. fxe7 {[%emt 0:00:08]} Qe8 {[%emt 0:00:12]} 42. h5 {[%emt 0:00:31]} Rxe7 {[%emt 0:00:56]} 43. hxg6+ {[%emt 0:00:05]} Kg8 {[%emt 0:00:34]} 44. Qd5+ {[%emt 0:02:37]} Kh8 {[%emt 0:00:10]} 45. Qd4+ {[%emt 0:00:28]} Kg8 {[%emt 0:00:31]} 46. Nf5 {[%emt 0:00:49]} Rd7 {[%emt 0:01:05]} 47. Nxh6+ {[%emt 0:00:14]} Kf8 {[%emt 0:00:02]} 48. Qf6+ {[%emt 0:00:07]} 1-0

[Event "51st La Roda Open 2025"]
[Site "La Roda"]
[Date "2025.04.20"]
[Round "9.10"]
[White "Rodriguez Rivera, Pedro"]
[Black "Goncalves, Samuel Jesus P"]
[Result "1/2-1/2"]
[Annotator "ChessBase"]
[ECO "B13"]
[WhiteElo "2127"]
[BlackElo "2248"]
[PlyCount "139"]
[EventDate "2025.04.15"]
[EventType "swiss"]
[EventCountry "ESP"]
[SourceTitle "playchess.com"]
[Source "ChessBase"]
[SourceQuality "1"]
[TimeControl "5400+30"]

1. e4 {[%emt 0:00:12]} c6 {[%emt 0:00:09]} 2. d4 {[%emt 0:00:08]} d5 {[%emt 0:00:09]} 3. exd5 {[%emt 0:00:01]} cxd5 {[%emt 0:00:10]} 4. Bd3 {[%emt 0:00:02]} Nc6 {[%emt 0:00:09]} 5. c3 {[%emt 0:00:02]} Qc7 {[%emt 0:00:07]} 6. Ne2 {[%emt 0:03:33]} Bg4 {[%emt 0:00:19]} 7. Bf4 {[%emt 0:01:16]} Qxf4 {[%emt 0:04:49]} 8. Nxf4 {[%emt 0:00:11]} Bxd1 {[%emt 0:00:05]} 9. Kxd1 {[%emt 0:00:06]} e6 {[%emt 0:00:10]} 10. Bb5 {[%emt 0:00:41]} Bd6 {[%emt 0:01:25]} 11. Bxc6+ {[%emt 0:00:29]} bxc6 {[%emt 0:00:03]} 12. Nd3 {[%emt 0:00:05]} Nf6 {[%emt 0:06:08]} 13. Nd2 {[%emt 0:00:07]} Nd7 {[%emt 0:00:28]} 14. Re1 {[%emt 0:03:27]} Ke7 {[%emt 0:01:47]} 15. Kc2 {[%emt 0:01:11]} Rhb8 {[%emt 0:09:49]} 16. b4 {[%emt 0:03:41]} a5 {[%emt 0:04:21]} 17. a3 {[%emt 0:01:17]} Nb6 {[%emt 0:09:38]} 18. h3 {[%emt 0:04:19]} Ra7 {[%emt 0:02:24]} 19. Reb1 {[%emt 0:03:16]} Kd7 {[%emt 0:11:22]} 20. Nc5+ {[%emt 0:12:01]} Kc7 {[%emt 0:00:01]} 21. b5 {[%emt 0:12:41]} cxb5 {[%emt 0:04:46]} 22. Rxb5 {[%emt 0:00:03]} a4 {[%emt 0:03:28]} 23. Nd3 {[%emt 0:05:26]} Nd7 {[%emt 0:12:19]} 24. Rxb8 {[%emt 0:00:36]} Nxb8 {[%emt 0:00:01]} 25. Nb4 {[%emt 0:02:09]} Nc6 {[%emt 0:00:02]} 26. Nf3 {[%emt 0:00:50]} h6 {[%emt 0:01:09]} 27. Re1 {[%emt 0:03:14]} Na5 {[%emt 0:04:02]} 28. Nd2 {[%emt 0:03:39]} Bf4 {[%emt 0:00:19]} 29. Nb1 {[%emt 0:00:01]} Nc4 {[%emt 0:01:29]} 30. g3 {[%emt 0:01:01]} Bd6 {[%emt 0:00:03]} 31. Re2 {[%emt 0:02:20]} Kb6 {[%emt 0:00:35]} 32. Kd3 {[%emt 0:00:21]} Rc7 {[%emt 0:01:58]} 33. Ra2 {[%emt 0:01:10]} g5 {[%emt 0:06:53]} 34. Nd2 {[%emt 0:00:39]} Bxb4 {[%emt 0:02:41]} 35. axb4 {[%emt 0:03:33]} Kb5 {[%emt 0:02:42]} 36. Nxc4 {[%emt 0:03:37]} Rxc4 {[%emt 0:01:53]} 37. f4 {[%emt 0:02:26]} Rc8 {[%emt 0:01:34]} 38. f5 {[%emt 0:02:39]} exf5 {[%emt 0:07:22]} 39. Rf2 {[%emt 0:00:08]} a3 {[%emt 0:00:02]} 40. Rxf5 {[%emt 0:01:46]} a2 {[%emt 0:00:14]} 41. Rxd5+ {[%emt 0:01:31]} Ka4 {[%emt 0:00:01]} 42. Ra5+ {[%emt 0:00:23]} Kb3 {[%emt 0:00:01]} 43. c4 {[%emt 0:07:16]} Rxc4 {[%emt 0:00:01]} 44. Rxa2 {[%emt 0:00:16]} Rc3+ {[%emt 0:00:01]} 45. Kd2 {[%emt 0:00:26]} Rxg3 {[%emt 0:00:01]} 46. Ra7 {[%emt 0:00:52]} Kxb4 {[%emt 0:00:47]} 47. Rxf7 {[%emt 0:00:29]} Rxh3 {[%emt 0:00:09]} 48. Rc7 {[%emt 0:00:22]} g4 {[%emt 0:02:29]} 49. Ke2 {[%emt 0:01:44]} Rh5 {[%emt 0:02:35]} 50. Rg7 {[%emt 0:01:45]} Rh2+ {[%emt 0:00:07]} 51. Kd3 {[%emt 0:01:41]} h5 {[%emt 0:00:01]} 52. Rb7+ {[%emt 0:00:14]} Ka5 {[%emt 0:00:06]} 53. d5 {[%emt 0:00:40]} Rh1 {[%emt 0:00:54]} 54. Ke2 {[%emt 0:02:14]} Ka6 {[%emt 0:00:47]} 55. Rb3 {[%emt 0:00:45]} Rh2+ {[%emt 0:00:13]} 56. Ke1 {[%emt 0:00:22]} Rh1+ {[%emt 0:01:38]} 57. Ke2 {[%emt 0:00:45]} Rh2+ {[%emt 0:00:01]} 58. Ke1 {[%emt 0:00:13]} Rc2 {[%emt 0:00:26]} 59. d6 {[%emt 0:00:38]} Rc8 {[%emt 0:00:49]} 60. d7 {[%emt 0:00:57]} Rd8 {[%emt 0:00:05]} 61. Rd3 {[%emt 0:00:05]} Kb6 {[%emt 0:00:59]} 62. Rd5 {[%emt 0:00:16]} h4 {[%emt 0:00:19]} 63. Rd4 {[%emt 0:00:10]} Kc7 {[%emt 0:00:41]} 64. Rxg4 {[%emt 0:00:11]} Rh8 {[%emt 0:00:16]} 65. Rd4 {[%emt 0:00:22]} h3 {[%emt 0:00:17]} 66. d8=Q+ {[%emt 0:00:13]} Rxd8 {[%emt 0:00:03]} 67. Rxd8 {[%emt 0:00:09]} Kxd8 {[%emt 0:00:04]} 68. Kf2 {[%emt 0:00:03]} Kc8 {[%emt 0:00:09]} 69. Kg3 {[%emt 0:00:01]} Kb7 {[%emt 0:00:06]} 70. Kxh3 {[%emt 0:00:05]} 1/2-1/2

[Event "51st La Roda Open 2025"]
[Site "La Roda"]
[Date "2025.04.20"]
[Round "9.11"]
[White "Garcia Jimenez, Santiago"]
[Black "Siscar Conill, Aitor"]
[Result "1/2-1/2"]
[Annotator "ChessBase"]
[ECO "B12"]
[WhiteElo "2241"]
[BlackElo "1986"]
[PlyCount "217"]
[EventDate "2025.04.15"]
[EventType "swiss"]
[EventCountry "ESP"]
[SourceTitle "playchess.com"]
[Source "ChessBase"]
[SourceQuality "1"]
[TimeControl "5400+30"]

1. e4 {[%emt 0:00:03]} c6 {[%emt 0:02:17]} 2. d4 {[%emt 0:00:10]} d5 {[%emt 0:00:04]} 3. e5 {[%emt 0:00:04]} c5 {[%emt 0:00:08]} 4. c3 {[%emt 0:00:05]} Nc6 {[%emt 0:00:31]} 5. Be2 {[%emt 0:00:06]} e6 {[%emt 0:07:58]} 6. Nf3 {[%emt 0:00:27]} cxd4 {[%emt 0:01:54]} 7. cxd4 {[%emt 0:00:08]} Nge7 {[%emt 0:00:10]} 8. Na3 {[%emt 0:01:26]} Nf5 {[%emt 0:01:22]} 9. Nc2 {[%emt 0:00:08]} Be7 {[%emt 1:20:36]} 10. O-O {[%emt 0:00:16]} O-O {[%emt 0:00:00]} 11. Bd3 {[%emt 0:01:12]} f6 {[%emt 0:00:00]} 12. Bxf5 {[%emt 0:04:41]} exf5 {[%emt 0:00:00]} 13. Re1 {[%emt 0:01:30]} fxe5 {[%emt 0:00:00]} 14. Nxe5 {[%emt 0:04:18]} Nxe5 {[%emt 0:00:00]} 15. dxe5 {[%emt 0:02:01]} f4 {[%emt 0:00:00]} 16. Nd4 {[%emt 0:03:31]} Qb6 {[%emt 0:00:00]} 17. Nf3 {[%emt 0:08:44]} Be6 {[%emt 0:00:00]} 18. Qb3 {[%emt 0:02:28]} Qxb3 {[%emt 0:00:00]} 19. axb3 {[%emt 0:00:02]} Bc5 {[%emt 0:00:00]} 20. Ra4 {[%emt 0:02:50]} Bg4 {[%emt 0:00:00]} 21. Rxf4 {[%emt 0:10:34]} Rxf4 {[%emt 0:00:00]} 22. Bxf4 {[%emt 0:00:02]} Bxf3 {[%emt 0:00:00]} 23. gxf3 {[%emt 0:03:33]} Rf8 {[%emt 0:00:00]} 24. Bg3 {[%emt 0:01:04]} Rxf3 {[%emt 0:00:00]} 25. Rc1 {[%emt 0:07:02]} b6 {[%emt 0:00:00]} 26. Rd1 {[%emt 0:03:23]} Kf7 {[%emt 0:00:00]} 27. b4 {[%emt 0:02:46]} Be7 {[%emt 0:00:00]} 28. Rxd5 {[%emt 0:02:59]} Ke6 {[%emt 0:00:00]} 29. Rd2 {[%emt 0:39:27]} Rb3 {[%emt 0:00:00]} 30. Rc2 {[%emt 0:00:00]} Rxb4 {[%emt 0:00:06]} 31. Rc7 {[%emt 0:00:00]} a5 {[%emt 0:00:02]} 32. f4 {[%emt 0:00:00]} g6 {[%emt 0:00:02]} 33. Rc2 {[%emt 0:00:00]} Bc5+ {[%emt 0:04:15]} 34. Kg2 {[%emt 0:00:00]} a4 {[%emt 0:01:18]} 35. Kf3 {[%emt 0:00:00]} Bd4 {[%emt 0:00:54]} 36. Rc6+ {[%emt 0:00:00]} Kd7 {[%emt 0:03:01]} 37. Rd6+ {[%emt 0:00:00]} Kc7 {[%emt 0:01:07]} 38. f5 {[%emt 0:00:00]} gxf5 {[%emt 0:02:54]} 39. e6 {[%emt 0:00:00]} Rb3+ {[%emt 0:00:32]} 40. Ke2 {[%emt 0:00:00]} Rxb2+ {[%emt 0:00:33]} 41. Kd3 {[%emt 0:00:00]} Bc5 {[%emt 0:00:38]} 42. e7 {[%emt 0:00:00]} Rb3+ {[%emt 0:00:01]} 43. Kc2 {[%emt 0:00:00]} Bxd6 {[%emt 0:01:00]} 44. e8=Q {[%emt 0:00:00]} Bxg3 {[%emt 0:00:31]} 45. Qxa4 {[%emt 0:00:00]} Rf3 {[%emt 0:00:30]} 46. hxg3 {[%emt 0:00:00]} Kd6 {[%emt 0:00:31]} 47. Qd4+ {[%emt 0:00:00]} Kc6 {[%emt 0:00:32]} 48. Qg7 {[%emt 0:00:00]} Kc5 {[%emt 0:00:29]} 49. Qxh7 {[%emt 0:00:00]} Kd4 {[%emt 0:00:15]} 50. Kd2 {[%emt 0:00:00]} Rxg3 {[%emt 0:00:12]} 51. Qh4+ {[%emt 0:00:00]} Rg4 {[%emt 0:00:08]} 52. Qf6+ {[%emt 0:00:00]} Ke4 {[%emt 0:00:12]} 53. Qe6+ {[%emt 0:00:00]} Kf3 {[%emt 0:00:50]} 54. Qe3+ {[%emt 0:00:10]} Kg2 {[%emt 0:00:09]} 55. Qxb6 {[%emt 0:00:28]} Kg3 {[%emt 0:00:52]} 56. Qe3+ {[%emt 0:01:25]} Kh4 {[%emt 0:00:14]} 57. Qh6+ {[%emt 0:01:27]} Kg3 {[%emt 0:00:01]} 58. Kd3 {[%emt 0:00:43]} Rf4 {[%emt 0:01:41]} 59. Qg5+ {[%emt 0:00:26]} Kf3 {[%emt 0:00:31]} 60. Qg6 {[%emt 0:03:03]} Kf2 {[%emt 0:00:01]} 61. Qh6 {[%emt 0:00:48]} Kg3 {[%emt 0:00:07]} 62. Ke2 {[%emt 0:00:59]} Re4+ {[%emt 0:01:41]} 63. Kf1 {[%emt 0:00:12]} Kf3 {[%emt 0:00:01]} 64. Qh3+ {[%emt 0:00:54]} Kf4 {[%emt 0:00:13]} 65. Kf2 {[%emt 0:00:16]} Ke5 {[%emt 0:00:16]} 66. Qg3+ {[%emt 0:00:17]} Ke6 {[%emt 0:01:28]} 67. Kf3 {[%emt 0:00:33]} Kf6 {[%emt 0:00:30]} 68. Qd6+ {[%emt 0:00:41]} Kg5 {[%emt 0:00:14]} 69. Qd8+ {[%emt 0:00:06]} Kg6 {[%emt 0:00:10]} 70. Qf8 {[%emt 0:01:10]} Rg4 {[%emt 0:00:30]} 71. Qd6+ {[%emt 0:00:41]} Kg5 {[%emt 0:00:17]} 72. Qe5 {[%emt 0:00:35]} Kg6 {[%emt 0:00:11]} 73. Qe6+ {[%emt 0:01:40]} Kg5 {[%emt 0:00:02]} 74. Qd6 {[%emt 0:00:07]} Re4 {[%emt 0:00:18]} 75. Qb8 {[%emt 0:00:33]} Kf6 {[%emt 0:00:42]} 76. Qf8+ {[%emt 0:00:10]} Kg6 {[%emt 0:01:07]} 77. Qh8 {[%emt 0:01:16]} Rg4 {[%emt 0:00:29]} 78. Qe8+ {[%emt 0:00:33]} Kf6 {[%emt 0:00:13]} 79. Qc6+ {[%emt 0:00:12]} Kg5 {[%emt 0:01:01]} 80. Qc7 {[%emt 0:00:16]} Kf6 {[%emt 0:00:45]} 81. Qd6+ {[%emt 0:00:12]} Kg5 {[%emt 0:00:10]} 82. Qe5 {[%emt 0:01:35]} Kg6 {[%emt 0:00:15]} 83. Kf2 {[%emt 0:02:32]} Re4 {[%emt 0:00:12]} 84. Qd6+ {[%emt 0:00:35]} Kg5 {[%emt 0:00:01]} 85. Qd8+ {[%emt 0:00:18]} Kg6 {[%emt 0:00:20]} 86. Qg8+ {[%emt 0:00:10]} Kf6 {[%emt 0:00:09]} 87. Kf3 {[%emt 0:00:20]} Rg4 {[%emt 0:00:21]} 88. Qh8+ {[%emt 0:00:22]} Kg6 {[%emt 0:00:26]} 89. Qd8 {[%emt 0:01:46]} Re4 {[%emt 0:00:14]} 90. Qd6+ {[%emt 0:00:14]} Kg5 {[%emt 0:00:12]} 91. Qf8 {[%emt 0:00:54]} Kg6 {[%emt 0:00:12]} 92. Kg3 {[%emt 0:00:23]} Re3+ {[%emt 0:01:00]} 93. Kf2 {[%emt 0:00:47]} Re4 {[%emt 0:00:01]} 94. Qh8 {[%emt 0:00:28]} Rg4 {[%emt 0:00:21]} 95. Kf3 {[%emt 0:00:16]} Re4 {[%emt 0:00:12]} 96. Qg8+ {[%emt 0:00:13]} Kf6 {[%emt 0:00:01]} 97. Qh7 {[%emt 0:00:10]} Rg4 {[%emt 0:00:15]} 98. Qh6+ {[%emt 0:00:16]} Ke5 {[%emt 0:00:13]} 99. Ke3 {[%emt 0:00:33]} Rg3+ {[%emt 0:00:47]} 100. Kd2 {[%emt 0:00:09]} Rg2+ {[%emt 0:00:16]} 101. Kd3 {[%emt 0:00:15]} Rg4 {[%emt 0:00:14]} 102. Qf8 {[%emt 0:00:49]} Ke6 {[%emt 0:00:12]} 103. Qb8 {[%emt 0:00:51]} Kf6 {[%emt 0:00:30]} 104. Qd6+ {[%emt 0:00:20]} Kg5 {[%emt 0:00:16]} 105. Qe7+ {[%emt 0:00:08]} Kg6 {[%emt 0:00:11]} 106. Qd8 {[%emt 0:00:40]} Re4 {[%emt 0:00:21]} 107. Kd2 {[%emt 0:00:05]} Rg4 {[%emt 0:00:23]} 108. Ke3 {[%emt 0:00:04]} Re4+ {[%emt 0:00:22]} 109. Kf3 {[%emt 0:00:10]} 1/2-1/2

[Event "51st La Roda Open 2025"]
[Site "La Roda"]
[Date "2025.04.20"]
[Round "9.12"]
[White "Aishwin Daniel"]
[Black "Gomez Peco, David"]
[Result "1-0"]
[Annotator "ChessBase"]
[ECO "C11"]
[WhiteElo "2236"]
[BlackElo "2085"]
[PlyCount "51"]
[EventDate "2025.04.15"]
[EventType "swiss"]
[EventCountry "ESP"]
[SourceTitle "playchess.com"]
[Source "ChessBase"]
[SourceQuality "1"]
[TimeControl "5400+30"]

1. e4 {[%emt 0:03:11]} e6 {[%emt 0:00:41]} 2. d4 {[%emt 0:00:10]} d5 {[%emt 0:00:09]} 3. Nc3 {[%emt 0:00:22]} Nf6 {[%emt 0:00:20]} 4. e5 {[%emt 0:00:40]} Nfd7 {[%emt 0:00:10]} 5. f4 {[%emt 1:28:37]} c5 {[%emt 0:00:10]} 6. Nf3 {[%emt 0:00:00]} Nc6 {[%emt 0:00:24]} 7. Be3 {[%emt 0:00:00]} Qa5 {[%emt 0:00:23]} 8. Qd2 {[%emt 0:00:00]} Rb8 {[%emt 0:03:46]} 9. dxc5 {[%emt 0:00:00]} Bxc5 {[%emt 0:02:42]} 10. Bxc5 {[%emt 0:00:00]} Nxc5 {[%emt 0:04:11]} 11. Bd3 {[%emt 0:00:00]} b5 {[%emt 0:08:46]} 12. O-O {[%emt 0:00:00]} b4 {[%emt 0:00:54]} 13. Ne2 {[%emt 0:00:00]} Ba6 {[%emt 0:01:15]} 14. Nfd4 {[%emt 0:00:00]} Bxd3 {[%emt 0:19:46]} 15. cxd3 {[%emt 0:00:00]} Qb6 {[%emt 0:08:59]} 16. Kh1 {[%emt 0:00:00]} Nxd4 {[%emt 0:01:41]} 17. Nxd4 {[%emt 0:00:00]} Na4 {[%emt 0:00:10]} 18. Qc2 {[%emt 0:00:00]} Qxd4 {[%emt 0:15:32]} 19. Qc6+ {[%emt 0:00:00]} Kd8 {[%emt 0:01:36]} 20. Qd6+ {[%emt 0:00:00]} Kc8 {[%emt 0:00:22]} 21. Rfc1+ {[%emt 0:00:00]} Nc3 {[%emt 0:02:42]} 22. bxc3 {[%emt 0:00:00]} bxc3 {[%emt 0:00:49]} 23. Qc6+ {[%emt 0:00:00]} Kd8 {[%emt 0:00:36]} 24. Rab1 {[%emt 0:00:00]} Rb6 {[%emt 0:07:51]} 25. Qa8+ {[%emt 0:00:00]} Kc7 {[%emt 0:01:05]} 26. Qxa7+ {[%emt 0:00:00]} 1-0

[Event "51st La Roda Open 2025"]
[Site "La Roda"]
[Date "2025.04.20"]
[Round "9.13"]
[White "Talavera Garcia, Santiago"]
[Black "Pomes Marcet, Joan"]
[Result "1/2-1/2"]
[Annotator "ChessBase"]
[ECO "A26"]
[WhiteElo "2024"]
[BlackElo "2187"]
[PlyCount "95"]
[EventDate "2025.04.15"]
[EventType "swiss"]
[EventCountry "ESP"]
[SourceTitle "playchess.com"]
[Source "ChessBase"]
[SourceQuality "1"]
[TimeControl "5400+30"]

1. c4 {[%emt 0:07:08]} e5 {[%emt 0:00:27]} 2. Nc3 {[%emt 0:00:11]} d6 {[%emt 0:00:51]} 3. g3 {[%emt 0:00:31]} Nc6 {[%emt 0:01:39]} 4. Bg2 {[%emt 0:02:57]} g6 {[%emt 0:01:19]} 5. e4 {[%emt 0:04:40]} Bg7 {[%emt 0:03:27]} 6. Nge2 {[%emt 0:00:43]} Nge7 {[%emt 0:01:05]} 7. d3 {[%emt 0:02:39]} O-O {[%emt 0:02:02]} 8. h4 {[%emt 0:03:13]} h5 {[%emt 0:03:06]} 9. Bg5 {[%emt 0:02:25]} Be6 {[%emt 0:04:27]} 10. Nd5 {[%emt 0:06:55]} f6 {[%emt 0:01:21]} 11. Be3 {[%emt 0:04:18]} Nb8 {[%emt 0:07:22]} 12. Qb3 {[%emt 0:04:09]} b6 {[%emt 0:00:20]} 13. d4 {[%emt 0:17:28]} c6 {[%emt 0:17:20]} 14. Nxe7+ {[%emt 0:05:49]} Qxe7 {[%emt 0:00:02]} 15. d5 {[%emt 0:01:08]} cxd5 {[%emt 0:01:12]} 16. cxd5 {[%emt 0:00:32]} Bc8 {[%emt 0:03:18]} 17. O-O {[%emt 0:00:24]} Ba6 {[%emt 0:03:45]} 18. Rfe1 {[%emt 0:01:12]} Nd7 {[%emt 0:01:21]} 19. Nc3 {[%emt 0:14:32]} Nc5 {[%emt 0:09:58]} 20. Qa3 {[%emt 0:00:22]} Bc8 {[%emt 0:04:59]} 21. b4 {[%emt 0:00:18]} Na6 {[%emt 0:04:07]} 22. Nb5 {[%emt 0:05:23]} Qd7 {[%emt 0:00:22]} 23. Bf1 {[%emt 0:00:30]} Rf7 {[%emt 0:09:16]} 24. Rac1 {[%emt 0:01:44]} Bb7 {[%emt 0:00:29]} 25. Rc2 {[%emt 0:02:20]} Qd8 {[%emt 0:01:28]} 26. Rec1 {[%emt 0:00:21]} Bf8 {[%emt 0:00:06]} 27. Bd2 {[%emt 0:03:12]} Qd7 {[%emt 0:04:16]} 28. Kh2 {[%emt 0:01:05]} f5 {[%emt 0:02:11]} 29. exf5 {[%emt 0:02:31]} Qxf5 {[%emt 0:00:20]} 30. Be1 {[%emt 0:01:42]} g5 {[%emt 0:03:25]} 31. hxg5 {[%emt 0:00:59]} Qxg5 {[%emt 0:00:13]} 32. Nc3 {[%emt 0:01:23]} Nc7 {[%emt 0:00:52]} 33. Ne4 {[%emt 0:00:09]} Qg7 {[%emt 0:00:15]} 34. Qe3 {[%emt 0:01:24]} Nxd5 {[%emt 0:01:29]} 35. Qd2 {[%emt 0:01:26]} Qg6 {[%emt 0:04:05]} 36. Ng5 {[%emt 0:00:26]} Bh6 {[%emt 0:00:25]} 37. f4 {[%emt 0:00:56]} exf4 {[%emt 0:00:10]} 38. gxf4 {[%emt 0:01:04]} Rxf4 {[%emt 0:00:31]} 39. Rc8+ {[%emt 0:00:32]} Rf8 {[%emt 0:00:44]} 40. Rxa8 {[%emt 0:00:25]} Bxa8 {[%emt 0:00:19]} 41. Bh4 {[%emt 0:00:56]} Bg7 {[%emt 0:01:02]} 42. Bc4 {[%emt 0:00:48]} Rf5 {[%emt 0:01:14]} 43. Bd3 {[%emt 0:00:23]} Be5+ {[%emt 0:00:36]} 44. Kg1 {[%emt 0:00:41]} Bd4+ {[%emt 0:01:14]} 45. Kh2 {[%emt 0:00:07]} Be5+ {[%emt 0:00:41]} 46. Kg1 {[%emt 0:00:24]} Bd4+ {[%emt 0:00:52]} 47. Kh2 {[%emt 0:00:04]} Be5+ {[%emt 0:00:04]} 48. Kg1 {[%emt 0:00:38]} 1/2-1/2

[Event "51st La Roda Open 2025"]
[Site "La Roda"]
[Date "2025.04.20"]
[Round "9.14"]
[White "Vehi Bach, Victor Manuel"]
[Black "Martinez Herranz, Francisco Jose"]
[Result "1/2-1/2"]
[Annotator "ChessBase"]
[ECO "B61"]
[WhiteElo "2178"]
[BlackElo "2050"]
[PlyCount "66"]
[EventDate "2025.04.15"]
[EventType "swiss"]
[EventCountry "ESP"]
[SourceTitle "playchess.com"]
[Source "ChessBase"]
[SourceQuality "1"]
[TimeControl "5400+30"]

1. e4 {[%emt 0:00:02]} c5 {[%emt 0:00:43]} 2. Nf3 {[%emt 0:00:07]} d6 {[%emt 0:02:11]} 3. d4 {[%emt 0:00:08]} cxd4 {[%emt 0:00:02]} 4. Nxd4 {[%emt 0:00:07]} Nf6 {[%emt 0:00:04]} 5. Nc3 {[%emt 0:00:06]} Nc6 {[%emt 0:00:06]} 6. Bg5 {[%emt 0:00:33]} Bd7 {[%emt 0:00:27]} 7. Qd2 {[%emt 0:00:34]} Rc8 {[%emt 0:01:22]} 8. Nxc6 {[%emt 0:01:11]} Bxc6 {[%emt 0:01:05]} 9. f3 {[%emt 0:00:16]} Qa5 {[%emt 0:04:46]} 10. O-O-O {[%emt 0:02:29]} h6 {[%emt 0:11:15]} 11. Be3 {[%emt 0:05:08]} e6 {[%emt 0:04:34]} 12. Kb1 {[%emt 0:00:34]} Be7 {[%emt 0:01:57]} 13. Nb5 {[%emt 0:04:57]} Qxd2 {[%emt 0:05:45]} 14. Rxd2 {[%emt 0:00:08]} d5 {[%emt 0:03:53]} 15. Nxa7 {[%emt 0:01:09]} Rd8 {[%emt 0:00:25]} 16. e5 {[%emt 0:20:36]} Nd7 {[%emt 0:00:25]} 17. f4 {[%emt 0:02:20]} g5 {[%emt 0:01:01]} 18. Bb5 {[%emt 0:06:58]} Bxb5 {[%emt 0:05:09]} 19. Nxb5 {[%emt 0:00:05]} Bc5 {[%emt 0:00:27]} 20. Bxc5 {[%emt 0:10:36]} Nxc5 {[%emt 0:00:02]} 21. Nd6+ {[%emt 0:00:26]} Ke7 {[%emt 0:01:13]} 22. g3 {[%emt 0:05:53]} f5 {[%emt 0:06:57]} 23. Rd4 {[%emt 0:02:18]} Rd7 {[%emt 0:03:42]} 24. Rb4 {[%emt 0:01:21]} Ne4 {[%emt 0:03:09]} 25. a4 {[%emt 0:15:21]} Ra8 {[%emt 0:12:19]} 26. Rd1 {[%emt 0:02:45]} gxf4 {[%emt 0:03:41]} 27. gxf4 {[%emt 0:00:48]} Nxd6 {[%emt 0:00:19]} 28. exd6+ {[%emt 0:00:06]} Kxd6 {[%emt 0:00:18]} 29. Rb6+ {[%emt 0:00:25]} Kc5 {[%emt 0:01:11]} 30. Rxe6 {[%emt 0:00:35]} Rxa4 {[%emt 0:00:08]} 31. Rf1 {[%emt 0:00:29]} Rd6 {[%emt 0:01:48]} 32. Rxd6 {[%emt 0:01:28]} Kxd6 {[%emt 0:01:04]} 33. Rf3 {[%emt 0:00:07]} Kc5 {[%emt 0:07:50]} 1/2-1/2